fUSD/lending_fUSD_20241110
["ID","MTS","AMOUNT","RATE_DAILY","PERIOD"]
[341905488,1731277868285,-151.0,0.00014722,2]
[341905489,1731277868294,-151.0,0.00014722,2]
[341905490,1731277868304,-248.17207,0.00014722,2]
[341905491,1731277868313,-151.0,0.00014722,2]
[341905492,1731277868323,-151.0,0.00014722,2]
[341905493,1731277868332,-151.0,0.00014722,2]
[341905494,1731277868342,-151.0,0.00014722,2]
[341905495,1731277868351,-307.145341,0.00014722,2]
[341905496,1731277868361,-307.145341,0.00014722,2]
[341905497,1731277868371,-151.0,0.00014722,2]
[341905498,1731277868380,-151.0,0.00014722,2]
[341905499,1731277868390,-151.0,0.00014722,2]
[341905500,1731277868399,-253.062087,0.00014722,2]
[341905501,1731277868408,-253.062087,0.00014722,2]
[341905502,1731277868418,-253.062087,0.00014722,2]
[341905503,1731277868427,-253.062087,0.00014722,2]
[341905504,1731277868436,-591.80039556,0.00014722,2]
[341905505,1731277868446,-151.0,0.00014722,2]
[341905506,1731277868455,-151.0,0.00014722,2]
[341905507,1731277868464,-151.0,0.00014722,2]
[341905508,1731277868474,-151.0,0.00014722,2]
[341905509,1731277868483,-500.0,0.00014722,2]
[341905510,1731277868493,-155.167618,0.00014722,2]
[341905511,1731277868502,-1036.51,0.00014722,2]
[341905512,1731277868512,-500.0,0.00014722,2]
[341905513,1731277868525,-301.47830361,0.00014722,2]
[341905514,1731277868534,-162.141952,0.00014722,2]
[341905515,1731277868546,-500.0,0.00014722,2]
[341905516,1731277868556,-500.0,0.00014722,2]
[341905517,1731277868565,-389.68349886,0.00014722,2]
[341905518,1731277868575,-500.0,0.00014722,2]
[341905519,1731277868584,-500.0,0.00014722,2]
[341905520,1731277868593,-500.0,0.00014722,2]
[341905521,1731277868602,-500.0,0.00014722,2]
[341905522,1731277868611,-500.0,0.00014722,2]
[341905523,1731277868621,-500.0,0.00014722,2]
[341905524,1731277868630,-500.0,0.00014722,2]
[341905525,1731277868639,-500.0,0.00014722,2]
[341905526,1731277868648,-500.0,0.00014722,2]
[341905527,1731277868658,-456.14072959,0.00014722,2]
[341905528,1731277868667,-500.0,0.00014722,2]
[341905529,1731277868676,-500.0,0.00014722,2]
[341905530,1731277868686,-151.0,0.00014722,2]
[341905531,1731277868695,-151.0,0.00014722,2]
[341905532,1731277868705,-611.55050786,0.00014722,2]
[341905533,1731277868714,-500.0,0.00014722,2]
[341905534,1731277868723,-500.0,0.00014722,2]
[341905535,1731277868732,-618.1916924,0.00014722,2]
[341905536,1731277868742,-500.0,0.00014722,2]
[341905537,1731277868751,-1661.96,0.00014722,2]
[341905538,1731277868761,-500.0,0.00014722,2]
[341905539,1731277868776,-707.13,0.00014722,2]
[341905540,1731277868786,-500.0,0.00014722,2]
[341905541,1731277868795,-500.0,0.00014722,2]
[341905542,1731277868804,-461.178536,0.00014722,2]
[341905543,1731277868814,-461.178536,0.00014722,2]
[341905544,1731277868824,-461.178536,0.00014722,2]
[341905545,1731277868833,-461.178536,0.00014722,2]
[341905546,1731277868842,-461.178536,0.00014722,2]
[341905547,1731277868852,-461.178536,0.00014722,2]
[341905548,1731277868862,-500.0,0.00014722,2]
[341905549,1731277868872,-687.06,0.00014722,2]
[341905550,1731277868881,-500.0,0.00014722,2]
[341905551,1731277868890,-538.31933864,0.00014722,2]
[341905552,1731277868899,-151.0,0.00014722,2]
[341905553,1731277868909,-151.0,0.00014722,2]
[341905554,1731277868919,-500.0,0.00014722,2]
[341905555,1731277868927,-500.0,0.00014722,2]
[341905556,1731277868937,-500.0,0.00014722,2]
[341905557,1731277868946,-500.0,0.00014722,2]
[341905558,1731277868956,-542.84,0.00014722,2]
[341905559,1731277868966,-202.797666,0.00014722,2]
[341905560,1731277868976,-202.797666,0.00014722,2]
[341905561,1731277868985,-341.58746548,0.00014722,2]
[341905562,1731277868994,-202.797666,0.00014722,2]
[341905563,1731277869004,-202.797666,0.00014722,2]
[341905564,1731277869015,-500.0,0.00014722,2]
[341905565,1731277869027,-541.21,0.00014722,2]
[341905566,1731277869036,-500.0,0.00014722,2]
[341905567,1731277869045,-500.0,0.00014722,2]
[341905568,1731277869054,-558.800688,0.00014722,2]
[341905569,1731277869063,-558.800688,0.00014722,2]
[341905570,1731277869073,-558.800688,0.00014722,2]
[341905571,1731277869082,-558.800688,0.00014722,2]
[341905572,1731277869092,-558.800688,0.00014722,2]
[341905573,1731277869101,-558.800688,0.00014722,2]
[341905574,1731277869112,-177.31,0.00014722,2]
[341905575,1731277869121,-154.0,0.00014722,2]
[341905576,1731277869130,-170.851126,0.00014722,2]
[341905577,1731277869139,-170.851126,0.00014722,2]
[341905578,1731277869148,-170.851126,0.00014722,2]
[341905579,1731277869158,-170.851126,0.00014722,2]
[341905580,1731277869167,-170.851126,0.00014722,2]
[341905581,1731277869176,-170.851126,0.00014722,2]
[341905582,1731277869187,-377.34066605,0.00014743,2]
[341905583,1731277869196,-599.07,0.00014744,2]
[341905584,1731277869205,-500.0,0.00014745,2]
[341905585,1731277869215,-689.82,0.00014745,2]
[341905586,1731277869224,-500.0,0.00014745,2]
[341905587,1731277869233,-525.52,0.00014745,2]
[341905588,1731277869242,-860.47,0.00014745,2]
[341905589,1731277869252,-547.9,0.00014745,2]
[341905590,1731277869261,-500.0,0.00014745,2]
[341905591,1731277869276,-500.0,0.00014745,2]
[341905592,1731277869286,-1446.66,0.00014745,2]
[341905593,1731277869296,-1394.49,0.00014745,2]
[341905594,1731277869305,-1398.62,0.00014745,2]
[341905595,1731277869315,-13865.96,0.00014745,2]
[341905596,1731277869325,-865.3,0.00014745,2]
[341905597,1731277869334,-500.0,0.00014745,2]
[341905598,1731277869343,-10614.66,0.00014745,2]
[341905599,1731277869353,-500.0,0.00014745,2]
[341905600,1731277869363,-1044.6,0.00014745,2]
[341905601,1731277869372,-3209.75,0.00014745,2]
[341905602,1731277869382,-500.0,0.00014745,2]
[341905603,1731277869391,-500.0,0.00014745,2]
[341905604,1731277869401,-882.11,0.00014745,2]
[341905605,1731277869411,-8889.01,0.00014745,2]
[341905606,1731277869420,-1096.77,0.00014745,2]
[341905607,1731277869430,-1857.24,0.00014745,2]
[341905608,1731277869439,-500.0,0.00014745,2]
[341905609,1731277869448,-1548.58,0.00014745,2]
[341905610,1731277869458,-814.47,0.00014745,2]
[341905611,1731277869467,-1474.27,0.00014745,2]
[341905612,1731277869477,-8633.46,0.00014745,2]
[341905613,1731277869486,-791.14,0.00014745,2]
[341905614,1731277869495,-151.0,0.00014746,2]
[341905615,1731277869504,-151.0,0.00014746,2]
[341905616,1731277869516,-461.178536,0.00014746,2]
[341905617,1731277869525,-461.178536,0.00014746,2]
[341905618,1731277869534,-151.0,0.00014746,2]
[341905619,1731277869544,-202.797666,0.00014746,2]
[341905620,1731277869557,-202.797673,0.00014746,2]
[341905621,1731277869567,-558.800688,0.00014746,2]
[341905622,1731277869576,-558.800688,0.00014746,2]
[341905623,1731277869586,-170.851126,0.00014746,2]
[341905624,1731277869598,-170.851126,0.00014746,2]
[341905625,1731277869607,-971.22,0.00014746,2]
[341905626,1731277869617,-151.0,0.00014747,2]
[341905627,1731277869627,-151.0,0.00014747,2]
[341905628,1731277869636,-308.55144334,0.0001476,2]
[341905629,1731277869646,-500.46872619,0.00014773,2]
[341905630,1731277869656,-500.0,0.00014773,2]
[341905631,1731277869666,-377.34066605,0.00014774,2]
[341905632,1731277869676,-612.13,0.00014787,2]
[341905633,1731277869685,-2744.18,0.00014787,2]
[341905634,1731277869695,-10049.06,0.00014787,2]
[341905635,1731277869704,-614.53,0.00014787,2]
[341905636,1731277869714,-610.07,0.00014787,2]
[341905637,1731277869724,-500.0,0.00014787,2]
[341905638,1731277869734,-536.49,0.00014787,2]
[341905639,1731277869743,-500.0,0.00014787,2]
[341905640,1731277869753,-599.07,0.00014787,2]
[341905641,1731277869764,-704.83,0.00014788,2]
[341905642,1731277869775,-500.0,0.00014788,2]
[341905643,1731277869784,-517.76,0.00014788,2]
[341905644,1731277869794,-765.39,0.00014788,2]
[341905645,1731277869803,-1201.03,0.00014788,2]
[341905646,1731277869811,-500.0,0.00014788,2]
[341905647,1731277869821,-534.44085902,0.00014788,2]
[341905648,1731277869830,-1414.65,0.00014788,2]
[341905649,1731277869839,-1574.12,0.00014788,2]
[341905650,1731277869848,-500.0,0.00014788,2]
[341905651,1731277869858,-530.33,0.00014788,2]
[341905652,1731277869867,-769.5,0.00014788,2]
[341905653,1731277869876,-1398.62,0.00014788,2]
[341905654,1731277869885,-738.9,0.00014788,2]
[341905655,1731277869894,-13865.96,0.00014788,2]
[341905656,1731277869905,-1424.58,0.00014788,2]
[341905657,1731277869914,-500.0,0.00014788,2]
[341905658,1731277869924,-1744.79,0.00014788,2]
[341905659,1731277869933,-1162.11,0.00014788,2]
[341905660,1731277869942,-1162.11,0.00014788,2]
[341905661,1731277869951,-865.3,0.00014788,2]
[341905662,1731277869961,-11378.24,0.00014788,2]
[341905663,1731277869971,-1261.47,0.00014788,2]
[341905664,1731277869980,-500.0,0.00014788,2]
[341905665,1731277869990,-200.72393371,0.00014788,2]
[341905666,1731277869999,-10614.66,0.00014788,2]
[341905667,1731277870008,-2398.75,0.00014788,2]
[341905668,1731277870019,-558.04,0.00014788,2]
[341905669,1731277870029,-1044.6,0.00014788,2]
[341905670,1731277870039,-7037.49,0.00014788,2]
[341905671,1731277870048,-676.88,0.00014788,2]
[341905672,1731277870058,-3209.75,0.00014788,2]
[341905673,1731277870067,-3209.75,0.00014788,2]
[341905674,1731277870077,-979.8,0.00014788,2]
[341905675,1731277870086,-979.8,0.00014788,2]
[341905676,1731277870096,-500.0,0.00014788,2]
[341905677,1731277870105,-500.0,0.00014788,2]
[341905678,1731277870115,-825.14,0.00014788,2]
[341905679,1731277870124,-500.0,0.00014788,2]
[341905680,1731277870134,-825.14,0.00014788,2]
[341905681,1731277870143,-2101.38,0.00014788,2]
[341905682,1731277870152,-8889.01,0.00014788,2]
[341905683,1731277870162,-8889.01,0.00014788,2]
[341905684,1731277870171,-1096.77,0.00014788,2]
[341905685,1731277870181,-1096.77,0.00014788,2]
[341905686,1731277870190,-612.13,0.00014788,2]
[341905687,1731277870200,-612.13,0.00014788,2]
[341905688,1731277870209,-8059.27,0.00014788,2]
[341905689,1731277870219,-1997.43,0.00014788,2]
[341905690,1731277870228,-3328.94,0.00014788,2]
[341905691,1731277870238,-2744.18,0.00014788,2]
[341905692,1731277870247,-2744.18,0.00014788,2]
[341905693,1731277870257,-1857.24,0.00014788,2]
[341905694,1731277870271,-9149.24,0.00014788,2]
[341905695,1731277870280,-500.0,0.00014788,2]
[341905696,1731277870290,-11038.89,0.00014788,2]
[341905697,1731277870300,-11038.89,0.00014788,2]
[341905698,1731277870310,-10049.06,0.00014788,2]
[341905699,1731277870319,-10049.06,0.00014788,2]
[341905700,1731277870329,-3418.69,0.00014788,2]
[341905701,1731277870338,-8139.44,0.00014788,2]
[341905702,1731277870347,-8139.44,0.00014788,2]
[341905703,1731277870357,-614.53,0.00014788,2]
[341905704,1731277870367,-500.0,0.00014788,2]
[341905705,1731277870376,-614.53,0.00014788,2]
[341905706,1731277870386,-4910.64,0.00014788,2]
[341905707,1731277870395,-610.07,0.00014788,2]
[341905708,1731277870404,-610.07,0.00014788,2]
[341905709,1731277870413,-535.92,0.00014788,2]
[341905710,1731277870422,-3542.66,0.00014788,2]
[341905711,1731277870431,-3542.66,0.00014788,2]
[341905712,1731277870440,-814.47,0.00014788,2]
[341905713,1731277870450,-814.47,0.00014788,2]
[341905714,1731277870459,-450.68090503,0.00014788,2]
[341905715,1731277870469,-1540.59,0.00014788,2]
[341905716,1731277870478,-536.49,0.00014788,2]
[341905717,1731277870487,-536.49,0.00014788,2]
[341905718,1731277870496,-1474.27,0.00014788,2]
[341905719,1731277870506,-1474.27,0.00014788,2]
[341905720,1731277870519,-3014.98,0.00014788,2]
[341905721,1731277870529,-1865.42,0.00014788,2]
[341905722,1731277870538,-8633.46,0.00014788,2]
[341905723,1731277870548,-500.0,0.00014788,2]
[341905724,1731277870560,-500.0,0.00014788,2]
[341905725,1731277870569,-791.14,0.00014788,2]
[341905726,1731277870579,-791.14,0.00014788,2]
[341905727,1731277870590,-5594.85,0.00014788,2]
[341905728,1731277870600,-500.0,0.00014788,2]
[341905729,1731277870609,-500.0,0.00014788,2]
[341905730,1731277870670,-599.07,0.00014788,2]
[341905731,1731277870679,-2824.34,0.00014788,2]
[341905732,1731277870688,-599.07,0.00014788,2]
[341905733,1731277870698,-599.07,0.00014788,2]
[341905734,1731277870707,-599.07,0.00014788,2]
[341905735,1731277870716,-599.07,0.00014788,2]
[341905736,1731277870726,-599.30972404,0.00014788,2]
[341905737,1731277870734,-500.0,0.00014789,2]
[341905738,1731277870744,-500.0,0.00014789,2]
[341905739,1731277870753,-500.0,0.00014789,2]
[341905740,1731277870764,-250.0,0.00014789,2]
[341905741,1731277870773,-348.34,0.00014789,2]
[341905742,1731277870782,-607.25,0.00014789,2]
[341905743,1731277870791,-659.92,0.00014789,2]
[341905744,1731277870800,-740.11,0.00014789,2]
[341905745,1731277870809,-251.90742878,0.00014789,2]
[341905746,1731277870818,-500.0,0.00014789,2]
[341905747,1731277870827,-500.0,0.00014789,2]
[341905748,1731277870837,-500.0,0.00014789,2]
[341905749,1731277870847,-500.0,0.00014789,2]
[341905750,1731277870856,-649.22,0.00014789,2]
[341905751,1731277870865,-1207.49,0.00014789,2]
[341905752,1731277870874,-500.0,0.00014789,2]
[341905753,1731277870883,-500.0,0.00014789,2]
[341905754,1731277870893,-596.29,0.00014789,2]
[341905755,1731277870902,-500.0,0.00014789,2]
[341905756,1731277870911,-585.22,0.00014789,2]
[341905757,1731277870921,-1320.36,0.00014789,2]
[341905758,1731277870930,-518.72170728,0.00014789,2]
[341905759,1731277870939,-500.0,0.00014789,2]
[341905760,1731277870948,-633.41,0.00014789,2]
[341905761,1731277870957,-757.9,0.00014789,2]
[341905762,1731277870967,-892.9,0.00014789,2]
[341905763,1731277870976,-500.0,0.00014789,2]
[341905764,1731277870986,-500.0,0.00014789,2]
[341905765,1731277870995,-500.0,0.00014789,2]
[341905766,1731277871005,-500.0,0.00014789,2]
[341905767,1731277871015,-500.0,0.00014789,2]
[341905768,1731277871025,-500.0,0.00014789,2]
[341905769,1731277871034,-500.0,0.00014789,2]
[341905770,1731277871043,-500.0,0.00014789,2]
[341905771,1731277871052,-500.0,0.00014789,2]
[341905772,1731277871061,-500.0,0.00014789,2]
[341905773,1731277871071,-1324.84,0.00014789,2]
[341905774,1731277871081,-1765.88,0.00014789,2]
[341905775,1731277871090,-500.0,0.00014789,2]
[341905776,1731277871100,-1822.38,0.00014789,2]
[341905777,1731277871109,-500.0,0.00014789,2]
[341905778,1731277871119,-792.46,0.00014789,2]
[341905779,1731277871128,-500.0,0.00014789,2]
[341905780,1731277871138,-500.0,0.00014789,2]
[341905781,1731277871148,-500.0,0.00014789,2]
[341905782,1731277871158,-430.02840106,0.00014789,2]
[341905783,1731277871167,-1021.04,0.00014789,2]
[341905784,1731277871176,-514.64,0.00014789,2]
[341905785,1731277871185,-1314.69,0.00014789,2]
[341905786,1731277871194,-517.76,0.00014789,2]
[341905787,1731277871203,-517.76,0.00014789,2]
[341905788,1731277871212,-517.76,0.00014789,2]
[341905789,1731277871221,-612.01,0.00014789,2]
[341905790,1731277871230,-765.39,0.00014789,2]
[341905791,1731277871239,-765.39,0.00014789,2]
[341905792,1731277871248,-765.39,0.00014789,2]
[341905793,1731277871258,-2552.19,0.00014789,2]
[341905794,1731277871270,-1201.03,0.00014789,2]
[341905795,1731277871280,-1201.03,0.00014789,2]
[341905796,1731277871289,-1201.03,0.00014789,2]
[341905797,1731277871299,-500.0,0.00014789,2]
[341905798,1731277871309,-500.0,0.00014789,2]
[341905799,1731277871319,-500.0,0.00014789,2]
[341905800,1731277871328,-500.0,0.00014789,2]
[341905801,1731277871337,-500.0,0.00014789,2]
[341905802,1731277871347,-500.0,0.00014789,2]
[341905803,1731277871356,-500.0,0.00014789,2]
[341905804,1731277871366,-689.82,0.00014789,2]
[341905805,1731277871375,-689.82,0.00014789,2]
[341905806,1731277871385,-500.0,0.00014789,2]
[341905807,1731277871394,-500.0,0.00014789,2]
[341905808,1731277871404,-500.0,0.00014789,2]
[341905809,1731277871413,-500.0,0.00014789,2]
[341905810,1731277871423,-525.52,0.00014789,2]
[341905811,1731277871432,-525.52,0.00014789,2]
[341905812,1731277871441,-1414.65,0.00014789,2]
[341905813,1731277871450,-1414.65,0.00014789,2]
[341905814,1731277871459,-1414.65,0.00014789,2]
[341905815,1731277871468,-500.0,0.00014789,2]
[341905816,1731277871477,-500.0,0.00014789,2]
[341905817,1731277871486,-2163.41,0.00014789,2]
[341905818,1731277871495,-500.0,0.00014789,2]
[341905819,1731277871504,-860.47,0.00014789,2]
[341905820,1731277871515,-860.47,0.00014789,2]
[341905821,1731277871524,-2171.84,0.00014789,2]
[341905822,1731277871533,-4473.22,0.00014789,2]
[341905823,1731277871543,-547.9,0.00014789,2]
[341905824,1731277871554,-547.9,0.00014789,2]
[341905825,1731277871563,-1574.12,0.00014789,2]
[341905826,1731277871572,-1574.12,0.00014789,2]
[341905827,1731277871582,-1574.12,0.00014789,2]
[341905828,1731277871592,-500.0,0.00014789,2]
[341905829,1731277871601,-500.0,0.00014789,2]
[341905830,1731277871610,-500.0,0.00014789,2]
[341905831,1731277871619,-500.0,0.00014789,2]
[341905832,1731277871631,-500.0,0.00014789,2]
[341905833,1731277871639,-500.0,0.00014789,2]
[341905834,1731277871648,-500.0,0.00014789,2]
[341905835,1731277871657,-500.0,0.00014789,2]
[341905836,1731277871666,-500.0,0.00014789,2]
[341905837,1731277871674,-500.0,0.00014789,2]
[341905838,1731277871683,-530.33,0.00014789,2]
[341905839,1731277871691,-530.33,0.00014789,2]
[341905840,1731277871700,-530.33,0.00014789,2]
[341905841,1731277871708,-11013.71,0.00014789,2]
[341905842,1731277871717,-1768.63,0.00014789,2]
[341905843,1731277871726,-500.0,0.00014789,2]
[341905844,1731277871735,-500.0,0.00014789,2]
[341905845,1731277871743,-1446.66,0.00014789,2]
[341905846,1731277871752,-1446.66,0.00014789,2]
[341905847,1731277871761,-769.5,0.00014789,2]
[341905848,1731277871774,-769.5,0.00014789,2]
[341905849,1731277871783,-769.5,0.00014789,2]
[341905850,1731277871792,-696.7,0.00014789,2]
[341905851,1731277871802,-1394.49,0.00014789,2]
[341905852,1731277871811,-1394.49,0.00014789,2]
[341905853,1731277871820,-1398.62,0.00014789,2]
[341905854,1731277871829,-1398.62,0.00014789,2]
[341905855,1731277871839,-1398.62,0.00014789,2]
[341905856,1731277871847,-738.9,0.00014789,2]
[341905857,1731277871857,-738.9,0.00014789,2]
[341905858,1731277871866,-738.9,0.00014789,2]
[341905859,1731277871875,-13865.96,0.00014789,2]
[341905860,1731277871884,-13865.96,0.00014789,2]
[341905861,1731277871893,-13865.96,0.00014789,2]
[341905862,1731277871902,-6186.91,0.00014789,2]
[341905863,1731277871912,-4322.66,0.00014789,2]
[341905864,1731277871921,-1424.58,0.00014789,2]
[341905865,1731277871930,-1424.58,0.00014789,2]
[341905866,1731277871939,-1424.58,0.00014789,2]
[341905867,1731277871948,-5620.44,0.00014789,2]
[341905868,1731277871957,-500.0,0.00014789,2]
[341905869,1731277871966,-500.0,0.00014789,2]
[341905870,1731277871975,-345.20505833,0.00014789,2]
[341905871,1731277871983,-1744.79,0.00014789,2]
[341905872,1731277871992,-1744.79,0.00014789,2]
[341905873,1731277872001,-1744.79,0.00014789,2]
[341905874,1731277872010,-1162.11,0.00014789,2]
[341905875,1731277872021,-1162.11,0.00014789,2]
[341905876,1731277872030,-1162.11,0.00014789,2]
[341905877,1731277872039,-865.3,0.00014789,2]
[341905878,1731277872049,-865.3,0.00014789,2]
[341905879,1731277872058,-865.3,0.00014789,2]
[341905880,1731277872068,-11378.24,0.00014789,2]
[341905881,1731277872077,-11378.24,0.00014789,2]
[341905882,1731277872086,-11378.24,0.00014789,2]
[341905883,1731277872095,-1261.47,0.00014789,2]
[341905884,1731277872104,-1261.47,0.00014789,2]
[341905885,1731277872114,-1261.47,0.00014789,2]
[341905886,1731277872124,-12931.16,0.00014789,2]
[341905887,1731277872133,-500.0,0.00014789,2]
[341905888,1731277872144,-500.0,0.00014789,2]
[341905889,1731277872153,-500.0,0.00014789,2]
[341905890,1731277872162,-505.21,0.00014789,2]
[341905891,1731277872171,-1203.76,0.00014789,2]
[341905892,1731277872180,-10614.66,0.00014789,2]
[341905893,1731277872189,-10614.66,0.00014789,2]
[341905894,1731277872198,-10614.66,0.00014789,2]
[341905895,1731277872207,-3232.69,0.00014789,2]
[341905896,1731277872216,-2398.75,0.00014789,2]
[341905897,1731277872226,-2398.75,0.00014789,2]
[341905898,1731277872235,-2398.75,0.00014789,2]
[341905899,1731277872244,-1929.9,0.00014789,2]
[341905900,1731277872253,-500.0,0.00014789,2]
[341905901,1731277872262,-500.0,0.00014789,2]
[341905902,1731277872278,-500.0,0.00014789,2]
[341905903,1731277872287,-863.8,0.00014789,2]
[341905904,1731277872296,-558.04,0.00014789,2]
[341905905,1731277872305,-558.04,0.00014789,2]
[341905906,1731277872314,-558.04,0.00014789,2]
[341905907,1731277872324,-1770.79,0.00014789,2]
[341905908,1731277872333,-1044.6,0.00014789,2]
[341905909,1731277872342,-1044.6,0.00014789,2]
[341905910,1731277872352,-1044.6,0.00014789,2]
[341905911,1731277872361,-7037.49,0.00014789,2]
[341905912,1731277872370,-676.88,0.00014789,2]
[341905913,1731277872380,-7037.49,0.00014789,2]
[341905914,1731277872389,-676.88,0.00014789,2]
[341905915,1731277872398,-7037.49,0.00014789,2]
[341905916,1731277872408,-676.88,0.00014789,2]
[341905917,1731277872417,-3209.75,0.00014789,2]
[341905918,1731277872426,-3209.75,0.00014789,2]
[341905919,1731277872435,-3209.75,0.00014789,2]
[341905920,1731277872444,-3209.75,0.00014789,2]
[341905921,1731277872452,-3209.75,0.00014789,2]
[341905922,1731277872461,-3209.75,0.00014789,2]
[341905923,1731277872470,-3209.75,0.00014789,2]
[341905924,1731277872479,-3209.84,0.00014789,2]
[341905925,1731277872488,-979.8,0.00014789,2]
[341905926,1731277872497,-979.8,0.00014789,2]
[341905927,1731277872508,-979.8,0.00014789,2]
[341905928,1731277872519,-1613.45,0.00014789,2]
[341905929,1731277872528,-500.0,0.00014789,2]
[341905930,1731277872537,-500.0,0.00014789,2]
[341905931,1731277872547,-500.0,0.00014789,2]
[341905932,1731277872560,-500.0,0.00014789,2]
[341905933,1731277872569,-500.0,0.00014789,2]
[341905934,1731277872579,-326.42,0.00014789,2]
[341905935,1731277872589,-500.0,0.00014789,2]
[341905936,1731277872599,-539.96,0.00014789,2]
[341905937,1731277872608,-825.14,0.00014789,2]
[341905938,1731277872617,-500.0,0.00014789,2]
[341905939,1731277872627,-825.14,0.00014789,2]
[341905940,1731277872636,-500.0,0.00014789,2]
[341905941,1731277872646,-825.14,0.00014789,2]
[341905942,1731277872655,-882.11,0.00014789,2]
[341905943,1731277872664,-882.11,0.00014789,2]
[341905944,1731277872673,-500.0,0.00014789,2]
[341905945,1731277872683,-2101.38,0.00014789,2]
[341905946,1731277872692,-2101.38,0.00014789,2]
[341905947,1731277872701,-2101.38,0.00014789,2]
[341905948,1731277872711,-8889.01,0.00014789,2]
[341905949,1731277872720,-8889.01,0.00014789,2]
[341905950,1731277872729,-8889.01,0.00014789,2]
[341905951,1731277872738,-8889.01,0.00014789,2]
[341905952,1731277872747,-500.0,0.00014789,2]
[341905953,1731277872757,-8889.01,0.00014789,2]
[341905954,1731277872768,-8889.01,0.00014789,2]
[341905955,1731277872777,-8889.01,0.00014789,2]
[341905956,1731277872786,-8889.09450332,0.00014789,2]
[341905957,1731277872795,-720.43,0.00014789,2]
[341905958,1731277872805,-1663.13,0.00014789,2]
[341905959,1731277872814,-1096.77,0.00014789,2]
[341905960,1731277872824,-1096.77,0.00014789,2]
[341905961,1731277872833,-1096.77,0.00014789,2]
[341905962,1731277872842,-1096.77,0.00014789,2]
[341905963,1731277872851,-1096.77,0.00014789,2]
[341905964,1731277872860,-1096.77,0.00014789,2]
[341905965,1731277872869,-1096.77,0.00014789,2]
[341905966,1731277872878,-612.13,0.00014789,2]
[341905967,1731277872887,-8059.27,0.00014789,2]
[341905968,1731277872896,-1096.88690344,0.00014789,2]
[341905969,1731277872905,-612.13,0.00014789,2]
[341905970,1731277872914,-8059.27,0.00014789,2]
[341905971,1731277872923,-612.13,0.00014789,2]
[341905972,1731277872932,-8059.27,0.00014789,2]
[341905973,1731277872942,-612.13,0.00014789,2]
[341905974,1731277872952,-187.77358031,0.00014789,2]
[341905975,1731277872961,-612.13,0.00014789,2]
[341905976,1731277872969,-612.21,0.00014789,2]
[341905977,1731277872978,-644.85757209,0.00014789,2]
[341905978,1731277872987,-11037.94,0.00014789,2]
[341905979,1731277872996,-1997.43,0.00014789,2]
[341905980,1731277873005,-1997.43,0.00014789,2]
[341905981,1731277873016,-1997.43,0.00014789,2]
[341905982,1731277873025,-3328.94,0.00014789,2]
[341905983,1731277873034,-3328.94,0.00014789,2]
[341905984,1731277873043,-3328.94,0.00014789,2]
[341905985,1731277873052,-1241.72,0.00014789,2]
[341905986,1731277873062,-2132.9,0.00014789,2]
[341905987,1731277873072,-2744.18,0.00014789,2]